Cogmind - Beta 10.2 @@@ ROGUE MODE // 2021.09.07 @ 09:40:12 Player: youngster Result: Destroyed by as-61270 with Assembled Heavy Rifle Performance ------------- Evolutions (0) 0 Regions Visited (4) 800 Robots Destroyed (43) 215 Value Destroyed (949) 949 Prototype IDs (2) 40 Alien Tech Used (0) 0 Bonus (25) 25 TOTAL SCORE: 2029 Bonus ------- Follower Combat Kills 25 Cogmind --------- Core Integrity 0/250 Matter 250/300 Energy 250/250 System Corruption 0% Temperature Cool (0) Movement Walking (210) Ox3 Location -9/Mines Parts ------- > --- POWER (1) -------- Ion Engine > --- PROPULSION (2) --- Aluminum Leg Aluminum Leg > --- UTILITY (2) ------ High-capacity Storage Unit High-capacity Storage Unit > --- WEAPON (2) ------- Heavy Assault Rifle Grenade Launcher > --- INVENTORY (20) --- Aluminum Leg Aluminum Leg Wheel Improved Heat Sink High-capacity Matter Pod (200) Experimental Sensor Array Signal Interpreter Improved Terrain Scanner Seismic Analyzer Improved Targeting Computer Utility Shielding Medium Armor Plating Hacking Suite Heavy Assault Rifle Heavy Assault Rifle Grenade Launcher Grenade Launcher Stasis Trap (100%) Stasis Trap (100%) Peak State ------------ > --- POWER ------------ Ion Engine > --- PROPULSION ------- Aluminum Leg Aluminum Leg > --- UTILITY ---------- High-capacity Storage Unit High-capacity Storage Unit > --- WEAPON ----------- Heavy Assault Rifle Heavy Assault Rifle > --- INVENTORY -------- Aluminum Leg Compact Wheel Improved Heat Sink High-capacity Matter Pod Experimental Sensor Array Signal Interpreter Improved Terrain Scanner Seismic Analyzer Improved Targeting Computer Utility Shielding Medium Armor Plating Hacking Suite Heavy Assault Rifle Grenade Launcher Grenade Launcher Grenade Launcher Stasis Trap Stasis Trap [Rating: 12] Favorites ----------- Power Ion Engine Engine Ion Engine Propulsion Light Treads Treads Light Treads Leg Aluminum Leg Wheel Compact Wheel Utility High-capacity Storage Unit Storage High-capacity Storage Unit Weapon EM Pulse Gun Energy Gun EM Pulse Gun Ballistic Gun Heavy Assault Rifle Launcher Grenade Launcher Build | -11 -10 -10 -10 -9 ------- Run | Scr Mat Min Exi Min Slots Evolved . | . . . . . Power . | . . . . . Propulsion . | . . . . . Utility . | . . . . . Weapon . | . . . . . Parts Attached 35 | 7 11 7 . 10 Power 3 | 1 . 1 . 1 Engine 3 | 1 . 1 . 1 Core . | . . . . . Reactor . | . . . . . Propulsion 6 | 2 . 1 . 3 Treads 2 | 2 . . . . Leg 3 | . . . . 3 Wheel 1 | . . 1 . . Hover . | . . . . . Flight . | . . . . . Utility 6 | 2 4 . . . Device . | . . . . . Storage 6 | 2 4 . . . Processor . | . . . . . Hackware . | . . . . . Protection . | . . . . . Artifact . | . . . . . Weapon 20 | 2 7 5 . 6 Energy Gun 8 | 1 2 3 . 2 Energy Cannon . | . . . . . Ballistic Gun 5 | 1 2 . . 2 Ballistic Cannon . | . . . . . Launcher 7 | . 3 2 . 2 Special Weapon . | . . . . . Impact Weapon . | . . . . . Slashing Weapon . | . . . . . Piercing Weapon . | . . . . . Special Melee Weapon . | . . . . . Unidentified Prototypes . | . . . . . Parts Lost 8 | . . 3 . 5 Power 2 | . . 1 . 1 Propulsion 2 | . . 1 . 1 Utility . | . . . . . Weapon 4 | . . 1 . 3 Highest Loss Streak 3 | . . 2 . 3 Average Slot Usage (%) 99 | . 100 99 100 98 Engine 13 | . 14 13 14 14 Treads 20 | . 28 17 14 9 Leg 1 | . . . . 7 Wheel 6 | . . 10 14 10 Storage 28 | . 28 28 28 28 Energy Gun 13 | . 13 13 14 12 Ballistic Gun 14 | . 14 14 14 14 Naked Turns . | . . . . . Heaviest Build 75 | 17 75 75 74 75 Greatest Support 40 | 40 40 40 20 20 Greatest Overweight (x) 7 | . 1 4 4 7 Average Overweight (x) 2 | . . 3 3 3 Largest Inventory Capacity 20 | 8 20 20 20 20 Average Capacity 18 | 6 16 20 20 20 Most Carried 20 | 5 17 20 20 20 Average Carried 16 | 3 13 18 20 19 Final Capacity 20 | 8 20 20 20 20 Final Carried 20 | 5 17 20 20 19 Class Distribution -------------------- 65% | Hauler-Mutant 34% | Mutant Dominant Class ---------------- Mutant | -10/Materials Hauler-Mutant | -10/Mines Hauler-Mutant | -10/Exiles Hauler-Mutant | -9/Mines Resources | -11 -10 -10 -10 -9 ----------- Run | Scr Mat Min Exi Min Matter Collected 931 | 288 321 160 . 162 Remotely . | . . . . . Salvage Created 1436 | 97 585 431 . 323 Parts 96 | 6 39 32 . 19 Haulers Intercepted 2 | . 2 . . . Recyclers Shooed 5 | . 3 . . 2 Parts Field Recycled . | . . . . . Retrieved Matter . | . . . . . Parts Self-Destructed . | . . . . . Prevented . | . . . . . Kills | -11 -10 -10 -10 -9 ------- Run | Scr Mat Min Exi Min Combat Hostiles Destroyed 32 | . 10 11 . 11 Guns 18 | . 6 6 . 6 AOE 14 | . 4 5 . 5 Classes Destroyed 9 | 2 5 . . 2 Tunneler 3 | 1 . 1 . 1 Hauler 2 | . 2 . . . Recycler 4 | 1 2 1 . . Operator 1 | . 1 . . . Watcher 3 | . 3 . . . Swarmer 12 | . 6 3 . 3 Grunt 17 | . 4 8 . 5 Duelist 1 | . . . . 1 Assembled 2 | . . . . 2 Best Kill Streak 4 | 2 3 4 . 4 Combat Bots Only 3 | . 3 3 . 3 Max Kills in Single Turn 2 | 1 1 2 . 2 Gunslinging . | . . . . . Exploded 2 | . 1 1 . 2 Melee . | . . . . . Uniques/NPCs Destroyed . | . . . . . Combat | -11 -10 -10 -10 -9 -------- Run | Scr Mat Min Exi Min Damage Taken 1178 | . 271 335 . 572 Core 258 | . 44 79 . 135 Absorbed by Shields . | . . . . . Core Remaining (%) 100 | 100 . . . . Volleys Fired 89 | 6 28 23 . 32 Largest 2 | 2 2 2 . 2 Hottest 63 | 60 63 63 . 63 Shots Fired 151 | 12 45 39 . 55 Gun 134 | 12 39 34 . 49 Cannon . | . . . . . Launcher 17 | . 6 5 . 6 Special . | . . . . . Kinetic 64 | 6 17 16 . 25 Thermal . | . . . . . Explosive 17 | . 6 5 . 6 Electromagnetic 70 | 6 22 18 . 24 Robot Hit Streak 18 | 4 18 13 . 12 Robot Miss Streak 3 | 3 2 2 . 3 Penetration Max . | . . . . . Secondary Targets 3 | . . 1 . 2 Max Gunslinging Chain 1 | . . 1 . 1 Shots Hit Robots 104 | 7 29 27 . 41 Core Hits 71 | 3 24 23 . 21 Critical Hits 1 | . . . . 1 Critical Kills . | . . . . . Critical Parts Destroyed 1 | . . . . 1 Melee Attacks . | . . . . . Impact . | . . . . . Slashing . | . . . . . Piercing . | . . . . . Sneak Attacks . | . . . . . Combat Hostiles . | . . . . . Follow-up Attacks . | . . . . . Damage Inflicted 2482 | 116 665 767 . 934 Guns 1373 | 116 399 360 . 498 Cannons . | . . . . . Explosions 1109 | . 266 407 . 436 Melee . | . . . . . Ramming . | . . . . . Kinetic 649 | 64 155 170 . 260 Thermal 87 | . . 87 . . Explosive 1022 | . 266 320 . 436 Electromagnetic 724 | 52 244 190 . 238 Impact . | . . . . . Slashing . | . . . . . Piercing . | . . . . . Highest Corruption . | . . . . . Average Corruption . | . . . . . Corruption Purged . | . . . . . Overload Shots . | . . . . . Overflow Damage 34 | . . 34 . . Projectiles . | . . . . . Explosions 34 | . . 34 . . Melee . | . . . . . Knockbacks . | . . . . . Impact . | . . . . . Kinetic . | . . . . . Secondary . | . . . . . Self-Inflicted Damage 89 | . . 62 . 27 Shots 4 | . . 2 . 2 Rammed . | . . . . . Targets Rammed . | . . . . . Kicked . | . . . . . Crushed . | . . . . . Highest Temperature 113 | . 18 36 . 113 Average Temperature 24 | . 7 14 . 38 Received Heat Transfer 393 | . 63 135 . 195 Siege Activations . | . . . . . Robots Corrupted . | . . . . . Combat Hostiles . | . . . . . Parts Fried 1 | . . . . 1 Impact Corruptions . | . . . . . Robots Melted . | . . . . . Combat Hostiles . | . . . . . Parts Melted . | . . . . . Heat Transferred 50 | . . 50 . . Parts Sabotaged . | . . . . . Parts Stolen . | . . . . . Parts Stripped . | . . . . . Power Chain Reactions 1 | . . 1 . . Missiles Intercepted . | . . . . . Alert | -11 -10 -10 -10 -9 ------- Run | Scr Mat Min Exi Min Peak Influence 239 | 10 239 191 . 143 Initial 61 | . 6 61 . . Average 91 | 5 91 101 . 91 Maximum Alert Level 1 | . 1 . . . Low Security (%) 99 | 100 98 100 . 100 Level 1 . | . 1 . . . Level 2 . | . . . . . Level 3 . | . . . . . Level 4 . | . . . . . Level 5 . | . . . . . High Security . | . . . . . Max Security . | . . . . . Squads Dispatched 2 | . 2 . . . Investigation 2 | . 2 . . . Extermination . | . . . . . Reinforcement . | . . . . . Assault . | . . . . . Garrison . | . . . . . Intercept . | . . . . . Construction Impeded . | . . . . . Haulers Reinforced . | . . . . . Stealth | -11 -10 -10 -10 -9 --------- Run | Scr Mat Min Exi Min Distress Signals . | . . . . . Communications Jammed . | . . . . . Distress Signals . | . . . . . Times Spotted 46 | . 18 11 . 17 Peak Tracking Total 6 | . 3 3 . 6 Tactical Retreats 1 | . 1 . . . Traps | -11 -10 -10 -10 -9 ------- Run | Scr Mat Min Exi Min Traps Triggered . | . . . . . Indirectly . | . . . . . Trap Hack Attempts . | . . . . . Triggered . | . . . . . Disarmed . | . . . . . Reprogrammed . | . . . . . Reused . | . . . . . Traps Extracted . | . . . . . Installed 1 | . . . . 1 Triggered . | . . . . . Machines | -11 -10 -10 -10 -9 ---------- Run | Scr Mat Min Exi Min Machines Disabled . | . . . . . Max in Single Turn . | . . . . . Machines Sabotaged . | . . . . . Garrisons Compromised . | . . . . . Overloaded Fab Kills . | . . . . . Fab Network Shutdowns . | . . . . . Hacking | -11 -10 -10 -10 -9 --------- Run | Scr Mat Min Exi Min Machines Accessed 11 | . 9 1 1 . Terminals 7 | . 6 1 . . Fabricators . | . . . . . Repair Stations 1 | . 1 . . . Recycling Units 2 | . 2 . . . Scanalyzers . | . . . . . Garrison Access . | . . . . . Total Hacks 52 | . 26 3 23 . Successful 40 | . 16 1 23 . Failed 12 | . 10 2 . . Catastrophic 1 | . . 1 . . Database Lockouts . | . . . . . Manual 24 | . 23 1 . . Terminals 25 | . 22 3 . . Fabricators . | . . . . . Repair Stations 2 | . 2 . . . Recycling Units 2 | . 2 . . . Scanalyzers . | . . . . . Garrison Access . | . . . . . Terminal Hacks 26 | . 2 1 23 . Record 23 | . . . 23 . Part Schematic 1 | . 1 . . . Prototype ID Bank 1 | . 1 . . . Zone Layout 1 | . . 1 . . Fabricator Hacks . | . . . . . Repair Station Hacks 2 | . 2 . . . Scan Component 1 | . 1 . . . Repair 1 | . 1 . . . Recycling Unit Hacks . | . . . . . Scanalyzer . | . . . . . Garrison Access Hacks . | . . . . . Unauthorized Hacks 12 | . 12 . . . Terminals 10 | . 10 . . . Track 4 | . 4 . . . Botnet 4 | . 4 . . . Detonate 1 | . 1 . . . Operators 1 | . 1 . . . Fabricators . | . . . . . Repair Stations . | . . . . . Recycling Units 2 | . 2 . . . Tunnel 2 | . 2 . . . Scanalyzers . | . . . . . Garrison Access . | . . . . . Data Cores Recovered 1 | . 1 . . . Used . | . . . . . Hacking Detections 6 | . 5 1 . . Full Trace Events . | . . . . . Feedback Events . | . . . . . Feedback Blocked . | . . . . . Robot Schematics Acquired . | . . . . . Robots Built . | . . . . . Matter . | . . . . . Time . | . . . . . Total Robot Build Rating . | . . . . . Part Schematics Acquired 1 | . 1 . . . Parts Built . | . . . . . Matter . | . . . . . Time . | . . . . . Total Part Build Rating . | . . . . . Parts Repaired 1 | . 1 . . . Time 32 | . 32 . . . Parts Recycled . | . . . . . Recycled Matter . | . . . . . Retrieved Matter . | . . . . . Retrieved Components . | . . . . . Parts Scanalyzed . | . . . . . Part Schematics Acquired . | . . . . . Parts Damaged . | . . . . . Bothacking | -11 -10 -10 -10 -9 ------------ Run | Scr Mat Min Exi Min Used RIF Installer . | . . . . . Robots Hacked . | . . . . . Non-combat . | . . . . . Combat . | . . . . . Robot Hacks Applied . | . . . . . Relay Couplers Released . | . . . . . Robots Rewired . | . . . . . Allies Hacked . | . . . . . Hacks Repelled . | . . . . . Allies | -11 -10 -10 -10 -9 -------- Run | Scr Mat Min Exi Min Total Allies 1 | . . . . 1 Largest Group 1 | . . . . 1 Highest-Rated Group 31 | . . . . 31 Highest-Rated Ally 31 | . . . . 31 Total Orders . | . . . . . Ally Attacks 3 | . . . . 3 Total Damage 64 | . . . . 64 Kills 1 | . . . . 1 Allies Corrupted . | . . . . . Allies Melted . | . . . . . Intel | -11 -10 -10 -10 -9 ------- Run | Scr Mat Min Exi Min Robot Analysis Total . | . . . . . Derelict Logs Recovered 5 | . . 2 . 3 Drone Launches . | . . . . . Drone Recoveries . | . . . . . Exploration | -11 -10 -10 -10 -9 ------------- Run | Scr Mat Min Exi Min Turns Passed 3197 | 97 1312 946 338 504 Spaces Moved 1637 | 45 660 518 154 260 Core 7 | 7 . . . . Treads 1069 | 38 660 218 153 . Legs 41 | . . . . 41 Wheels 520 | . . 300 1 219 Hover . | . . . . . Flight . | . . . . . Fastest Speed 50 | 50 160 140 140 140 Average Speed 172 | 142 178 164 219 151 Slowest Speed 330 | 160 180 220 220 330 Overloaded Moves . | . . . . . Propulsion Burnouts . | . . . . . Robots Hopped . | . . . . . Cave-ins Triggered . | . . . . . Exploration Rate (%) 60 | 5 90 99 49 61 Regions Visited 4 Branch Regions 3 Pre-discovered Areas 7 | . 2 2 1 2 Known Exits Taken . | . . . . . Unknown Exits Taken 4 | 1 1 1 1 . Scrap Searched 4 | . . 1 . 3 Spaces Dug 8 | . 8 . . . Terrain Destroyed 114 | . 31 37 . 46 Melee . | . . . . . Projectile . | . . . . . AOE 114 | . 31 37 . 46 Terrain Rammed . | . . . . . Walls Destroyed . | . . . . . Machines Disabled . | . . . . . Actions | -11 -10 -10 -10 -9 --------- Run | Scr Mat Min Exi Min Total 1861 | 62 757 571 155 316 Wait 44 | . 25 16 . 3 Move 1633 | 44 659 517 153 260 Hop . | . . . . . Pick Up 39 | 5 21 7 1 5 Fast Attach 9 | 7 . . . 2 Attach 7 | . . 3 . 4 Detach 1 | . . . . 1 Swap 19 | . 11 4 . 4 Drop 19 | . 13 1 1 4 Fire 89 | 6 28 23 . 32 Melee . | . . . . . Ram . | . . . . . Kick . | . . . . . Crush . | . . . . . Escape Stasis . | . . . . . Rewire . | . . . . . Trap 1 | . . . . 1 Miscellaneous . | . . . . . Route ------- -11/Scrapyard -10/Materials (discovered 5 exits: [*Mat x3] / *Min x2) -10/Mines (discovered 3 exits: [*Mat x2] / *Exi) -10/Exiles -9/Mines (discovered 1 exit: *Mat) History --------- Turn | Location | Event 2 | -11/Scrapyard | Met Revision 17 15 | -11/Scrapyard | Discovered new exit (range 15) 98 | -11/Scrapyard | Entered Materials 263 | -10/Materials | Repaired Imp. Terrain Scanner? 318 | -10/Materials | Build established: Mutant 328 | -10/Materials | Discovered new exit (range 11) 668 | -10/Materials | Discovered new exit (range 8) 747 | -10/Materials | Discovered new exit (range 16) 811 | -10/Materials | Discovered new exit (range 3) 1248 | -10/Materials | Discovered new exit (range 15) 1371 | -10/Materials | Build established: Hauler-Mutant 1410 | -10/Materials | Entered Mines 1491 | -10/Mines | Learned location of Mines (-9) 1630 | -10/Mines | Discovered new exit (range 6) 1689 | -10/Mines | Discovered new exit (range 5) 1942 | -10/Mines | Found a hidden stash of uninstalled traps 2208 | -10/Mines | Found a damaged Exp. Sensor Array with a note attached 2213 | -10/Mines | Found Prototype Device 2328 | -10/Mines | Discovered new exit (range 15) 2348 | -10/Mines | Deemed a non-threat by the Exiles lab entrance 2356 | -10/Mines | Entered Exiles 2409 | -10/Exiles | Met 8R-AWN 2447 | -10/Exiles | Met EX-HEX 2532 | -10/Exiles | Met EX-DEC 2543 | -10/Exiles | Learned location of Zion (-7) 2672 | -10/Exiles | Discovered new exit (range 12) 2694 | -10/Exiles | Entered Mines 2697 | -9/Mines | Core integrity fell below 50% 2755 | -9/Mines | Received a Mining Laser from a helpful Derelict 2885 | -9/Mines | Learned location of Storage (-7) 2949 | -9/Mines | Identified exit to Materials 3080 | -9/Mines | Lost 3 parts (1n2w) 3135 | -9/Mines | Core integrity fell below 20% 3182 | -9/Mines | Assembled infested the area 3198 | -9/Mines | Destroyed by as-61270 with Assembled Heavy Rifle Last Messages --------------- 03131_ Melee Analysis Suite fried. 03131_ L-31 Rogue destroyed. 03131_ Switching to secondary target: G-34 Mercenary. 03143_ G-34 Mercenary destroyed. 03145_ EM Pulse Gun destroyed. 03147_ G-34 Mercenary suffers critical hit. 03147_ Destroyed Ion Engine. 03150_ G-34 Mercenary destroyed. 03150_ T-07 Excavator destroyed. 03158_ Acquired 55 matter. 03171_ Acquired Wheel. 03172_ Dropped Com. Wheel. 03177_ Acquired derelict log, extracted data. World map confirmed: -7/Zion. 03182_ ALERT: Infestation in the mines, dispatching Demolisher response squad. 03195_ as-58234 destroyed. 03195_ as-76849 destroyed. 03197_ D-53 Grenadier destroyed. 03197_ as-48829 destroyed. Map ----- +----------------------------------------------------+ | | | | | | | | | | | | | | | | | | | | | | | | | | | | | ?????????????????????????????????????????????????? | | ?????????????????????????????????????????????????? | | ?????????????????????????????????????????????????? | | ??????????????####???????????????????????????????? | | ???????????? # ??????????????????????????????? | | ???????????? #####????????????????????????? | | ???????????? < ????????????????????????? | | ??????????? ######??????????????????? | | ????????????? #??????????????????? | | ?????????? # #???????????#??????? | | ?????????? #??????????? #?????? | | ????????????????# a @ #??????????? ?????? | | ????????????????# # ####???????? #????# | | ???????????????# # """ =%#???????? #### | | ???????????? ??# """ =[#???????? ## | | ??????????? ?????# """ ##%########?# | | ???????????? ????????###########* %%= ! #?? | | ???????????????????????????????######## #??? | | ??????????????????????????????????????# ##### | | ??????????????????????????????????????# | | ??????????????????????????????????????# | | ??????????????????????????????????????## ## | | ???????????????????????????????????????# ## | | ???????????????????????????????????????# ### | | ???????????????????????????????????????# #?## | | ??????????????????????????????????????? #??## | | ???????????????????????????????????????# #???#### | | ???????????????????????????????????????# #??????## | | ???????????????????????????????????????# #???????# | | ???????????????????????????????????????# #???????# | | ???????????????????????????????????????# ??????### | | ???????????????????????????????????????# ?????## | | ???????????????????????????????????????# ????## | | ???????????????????????????????????????# ##### | | ??????????????????????????????????????## | | ??????????????????????????????????????# | +----------------------------------------------------+ Best States ------------- Heat Dissipation 25 Energy Generation 10 Energy Capacity 250 Matter Stores 300 Matter Capacity 300 Sight Range 16 Terrain Scan Density 10 Evasion (%) 50 Recoil Reduction 2 Item Schematics ----------------- Hcp. Storage Unit | -10/Materials | Hacked Robot Schematics ------------------ None Fabricated ------------ Nothing Alien Tech Used ----------------- None Achievements -------------- None Challenges ------------ None Game ------ Seed OpticalBeamSegregator Manual? 0 Play Time 00:34:32 Cumulative 84.1 hours Start 2021.09.05 @ 08:26:38 End 2021.09.07 @ 09:40:12 Sessions 6 Manual Loads 0 Difficulty Rogue Special Mode None Game No. 58 Rogue 58 Adventurer 0 Explorer 0 Win Type - Total 1 Types 0/0/0/1/0/0/0/0/0 Lore% 56 Gallery% 69 Achievement% 44 Wizard Run 0 Options --------- ASCII 0 Keyboard 1 Movement Vi Keybinds 0 Fullscreen 2 Font 18/Cog Map View 76x50 Tactical HUD 1 Map Filters NONE Filters NONE Steam 0 RUN: c550e421-391f-4796-bdd5-8a223360266f